[Event "Nové Hrady - Blesk"]
[Site "Nové Hrady, Czech Republic"]
[Date "2023.08.17"]
[Round "4.6"]
[White "Blazek, Jiri"]
[Black "Garabik, Marek"]
[Result "1-0"]
[TimeControl "2x3+2s"]
[WhiteFideId "330515"]
[BlackFideId "23717742"]
[WhiteElo "2061"]
[BlackElo "1578"]

1. d4 {[%emt 00:00:04]} d5 2. e3 {[%clk 00:03:02]} {[%emt 00:00:01]} Nf6 {[%clk
00:03:05]} {[%emt 00:00:01]} 3. Bd3 {[%clk 00:03:03]} e6 {[%clk 00:03:06]} 4.
Nd2 {[%clk 00:03:00]} {[%emt 00:00:07]} Be7 {[%clk 00:03:05]} {[%emt 00:00:03]}
5. f4 {[%clk 00:03:01]} {[%emt 00:00:02]} c5 {[%clk 00:03:03]} {[%emt
00:00:03]} 6. c3 {[%clk 00:03:02]} c4 {[%clk 00:03:04]} 7. Bc2 {[%clk
00:03:03]} Nbd7 {[%clk 00:03:02]} {[%emt 00:00:07]} 8. Ngf3 {[%clk 00:03:04]}
O-O {[%clk 00:03:00]} {[%emt 00:00:05]} 9. O-O {[%clk 00:03:05]} Ne8 {[%clk
00:02:59]} {[%emt 00:00:04]} 10. Ne5 {[%clk 00:02:59]} {[%emt 00:00:07]} f5
{[%clk 00:02:53]} {[%emt 00:00:09]} 11. Kh1 {[%clk 00:02:54]} {[%emt 00:00:06]}
Ndf6 {[%clk 00:02:53]} {[%emt 00:00:02]} 12. Qf3 {[%clk 00:02:53]} {[%emt
00:00:03]} Nd6 {[%clk 00:02:54]} {[%emt 00:00:02]} 13. h3 {[%clk 00:02:51]}
{[%emt 00:00:04]} Nde4 {[%clk 00:02:48]} {[%emt 00:00:07]} 14. Nxe4 {[%clk
00:02:48]} {[%emt 00:00:05]} Nxe4 {[%clk 00:02:45]} {[%emt 00:00:05]} 15. Bxe4
{[%clk 00:02:39]} {[%emt 00:00:10]} dxe4 {[%clk 00:02:35]} {[%emt 00:00:13]} 16.
Qe2 {[%clk 00:02:38]} {[%emt 00:00:03]} Bd6 {[%clk 00:02:33]} {[%emt 00:00:04]}
17. Qxc4 {[%clk 00:02:34]} {[%emt 00:00:06]} Bxe5 {[%clk 00:02:27]} {[%emt
00:00:08]} 18. fxe5 {[%clk 00:02:31]} {[%emt 00:00:05]} a6 {[%clk 00:02:23]}
{[%emt 00:00:06]} 19. b3 {[%clk 00:02:28]} {[%emt 00:00:05]} Bd7 {[%clk
00:02:24]} 20. Ba3 {[%clk 00:02:24]} {[%emt 00:00:07]} Bb5 {[%clk 00:02:17]}
{[%emt 00:00:10]} 21. Qxe6+ {[%clk 00:02:24]} {[%emt 00:00:02]} Rf7 {[%clk
00:02:18]} {[%emt 00:00:02]} 22. Rxf5 {[%clk 00:02:12]} {[%emt 00:00:12]} Qe8
{[%clk 00:02:16]} {[%emt 00:00:04]} 23. Qxf7+ {[%clk 00:02:06]} {[%emt
00:00:09]} Qxf7 {[%clk 00:02:17]} 24. Rxf7 {[%clk 00:02:06]} {[%emt 00:00:02]}
Kxf7 {[%clk 00:02:17]} 25. c4 {[%clk 00:02:08]} Bd7 {[%clk 00:02:16]} {[%emt
00:00:06]} 26. d5 {[%clk 00:02:06]} {[%emt 00:00:04]} Re8 {[%clk 00:02:13]}
{[%emt 00:00:05]} 27. Rf1+ {[%clk 00:01:58]} {[%emt 00:00:10]} Kg6 {[%clk
00:02:13]} {[%emt 00:00:02]} 28. Rf8 {[%clk 00:01:40]} {[%emt 00:00:19]} Rxf8
{[%clk 00:02:04]} {[%emt 00:00:11]} 29. Bxf8 {[%clk 00:01:41]} Kf5 {[%clk
00:02:05]} 30. Bxg7 {[%clk 00:01:36]} {[%emt 00:00:09]} h5 {[%clk 00:01:56]}
{[%emt 00:00:12]} 31. Kg1 {[%clk 00:01:26]} {[%emt 00:00:12]} b5 {[%clk
00:01:57]} 32. e6 {[%clk 00:01:21]} {[%emt 00:00:07]} Be8 {[%clk 00:01:58]} 33.
c5 {[%clk 00:01:18]} {[%emt 00:00:06]} Kg6 {[%clk 00:01:49]} {[%emt 00:00:13]}
34. Bd4 {[%clk 00:01:12]} {[%emt 00:00:06]} Kh7 {[%clk 00:01:42]} {[%emt
00:00:10]} 35. c6 {[%clk 00:01:12]} {[%emt 00:00:02]} h4 {[%clk 00:01:39]}
{[%emt 00:00:04]} 36. c7 {[%clk 00:01:13]} a5 {[%clk 00:01:40]} {[%emt
00:00:03]} 37. c8=Q {[%clk 00:01:12]} {[%emt 00:00:02]} Bg6 {[%clk 00:01:32]}
{[%emt 00:00:10]} 38. Qh8# {[%emt 00:00:02]} 1-0

[Event "Nové Hrady - Blesk"]
[Site "Nové Hrady, Czech Republic"]
[Date "2023.08.17"]
[Round "4.7"]
[White "Voršilka, Jiří"]
[Black "Valenz, Miroslav"]
[Result "0-1"]
[TimeControl "2x3+2s"]
[WhiteFideId "365149"]
[BlackFideId "326283"]
[WhiteElo "1463"]
[BlackElo "1929"]

1. c4 {[%clk 00:03:02]} {[%emt 00:00:02]} Nf6 {[%clk 00:03:03]} {[%emt
00:00:02]} 2. Nc3 {[%clk 00:03:02]} d6 {[%clk 00:03:04]} 3. g3 {[%clk
00:03:03]} e5 {[%clk 00:03:06]} 4. Bg2 {[%clk 00:03:02]} {[%emt 00:00:06]} g6
{[%clk 00:03:07]} 5. e4 {[%clk 00:03:02]} {[%emt 00:00:02]} Bg7 {[%clk
00:03:08]} 6. Nge2 {[%clk 00:03:02]} {[%emt 00:00:03]} O-O {[%clk 00:03:09]}
{[%emt 00:00:02]} 7. O-O {[%clk 00:03:02]} {[%emt 00:00:02]} Nc6 {[%clk
00:03:10]} 8. d3 {[%clk 00:03:01]} {[%emt 00:00:04]} Bg4 {[%clk 00:03:11]} 9.
h3 {[%clk 00:02:56]} {[%emt 00:00:06]} Be6 {[%clk 00:03:08]} {[%emt 00:00:05]}
10. Be3 {[%clk 00:02:51]} {[%emt 00:00:07]} Qd7 {[%clk 00:03:03]} {[%emt
00:00:08]} 11. Kh2 {[%clk 00:02:51]} Nh5 {[%clk 00:02:59]} {[%emt 00:00:08]} 12.
a3 {[%clk 00:02:44]} {[%emt 00:00:09]} f5 {[%clk 00:03:00]} 13. exf5 {[%clk
00:02:39]} {[%emt 00:00:08]} gxf5 {[%clk 00:03:01]} 14. f4 {[%clk 00:02:22]}
{[%emt 00:00:20]} Kh8 {[%clk 00:02:40]} {[%emt 00:00:23]} 15. fxe5 {[%clk
00:02:06]} {[%emt 00:00:17]} dxe5 {[%clk 00:02:38]} {[%emt 00:00:04]} 16. Rf3
{[%clk 00:01:48]} {[%emt 00:00:19]} Rg8 {[%clk 00:02:27]} {[%emt 00:00:14]} 17.
b4 {[%clk 00:01:35]} {[%emt 00:00:15]} Raf8 {[%clk 00:02:26]} {[%emt 00:00:03]}
18. b5 {[%clk 00:01:35]} {[%emt 00:00:02]} Nd4 {[%clk 00:02:24]} {[%emt
00:00:05]} 19. Bxd4 {[%clk 00:01:33]} {[%emt 00:00:04]} exd4 {[%clk 00:02:24]}
20. Na2 {[%clk 00:01:25]} {[%emt 00:00:12]} Be5 {[%clk 00:02:11]} {[%emt
00:00:15]} 21. Qe1 {[%clk 00:01:17]} {[%emt 00:00:09]} Qd6 {[%clk 00:01:57]}
{[%emt 00:00:16]} 22. Nb4 {[%clk 00:00:27]} {[%emt 00:00:53]} Nxg3 {[%clk
00:01:49]} {[%emt 00:00:09]} 23. Kg1 {[%clk 00:00:19]} {[%emt 00:00:10]} f4
{[%clk 00:01:24]} {[%emt 00:00:28]} 24. Nxg3 {[%clk 00:00:12]} {[%emt
00:00:08]} Rxg3 {[%clk 00:01:14]} {[%emt 00:00:12]} 25. Rxg3 {[%clk 00:00:12]}
{[%emt 00:00:03]} fxg3 {[%clk 00:01:15]} 26. Qe4 {[%clk 00:00:09]} {[%emt
00:00:05]} Bf4 {[%clk 00:00:25]} {[%emt 00:00:53]} 27. Re1 {[%clk 00:00:03]}
{[%emt 00:00:07]} Be3+ {[%clk 00:00:25]} {[%emt 00:00:02]} 28. Kh1 {[%clk
00:00:03]} {[%emt 00:00:02]} Qd7 {[%clk 00:00:10]} {[%emt 00:00:17]} 0-1

[Event "Nové Hrady - Blesk"]
[Site "Nové Hrady, Czech Republic"]
[Date "2023.08.17"]
[Round "4.8"]
[White "Slabý, Matěj"]
[Black "Sadil, Antonin"]
[Result "1-0"]
[TimeControl "2x3+2s"]
[WhiteFideId "23734876"]
[BlackFideId "23735597"]
[WhiteElo "1894"]
[BlackElo "1697"]

1. d4 {[%clk 00:02:56]} {[%emt 00:00:08]} c6 {[%clk 00:03:04]} 2. Nf3 {[%clk
00:02:52]} {[%emt 00:00:07]} Nf6 {[%clk 00:03:03]} {[%emt 00:00:03]} 3. e3
{[%clk 00:02:53]} d5 {[%clk 00:03:03]} {[%emt 00:00:02]} 4. c4 {[%clk
00:02:54]} e6 {[%clk 00:03:01]} {[%emt 00:00:06]} 5. Nc3 {[%clk 00:02:55]} Be7
{[%clk 00:03:01]} {[%emt 00:00:03]} 6. Bd3 {[%clk 00:02:51]} {[%emt 00:00:05]}
O-O {[%clk 00:02:56]} {[%emt 00:00:07]} 7. O-O {[%clk 00:02:52]} {[%emt
00:00:01]} dxc4 {[%clk 00:02:55]} {[%emt 00:00:03]} 8. Bxc4 {[%clk 00:02:53]}
Nbd7 {[%clk 00:02:50]} {[%emt 00:00:08]} 9. e4 {[%clk 00:02:49]} {[%emt
00:00:06]} Bb4 {[%clk 00:02:51]} 10. e5 {[%clk 00:02:46]} {[%emt 00:00:07]} Nd5
{[%clk 00:02:46]} {[%emt 00:00:06]} 11. Bd2 {[%clk 00:02:42]} {[%emt 00:00:06]}
Bxc3 {[%clk 00:02:42]} {[%emt 00:00:06]} 12. bxc3 {[%clk 00:02:42]} {[%emt
00:00:02]} N7b6 {[%clk 00:02:42]} {[%emt 00:00:02]} 13. Bd3 {[%clk 00:02:43]}
{[%emt 00:00:01]} Bd7 {[%clk 00:02:25]} {[%emt 00:00:19]} 14. c4 {[%clk
00:02:38]} {[%emt 00:00:08]} Ne7 {[%clk 00:02:22]} {[%emt 00:00:05]} 15. Qe2
{[%clk 00:02:37]} {[%emt 00:00:02]} Rc8 {[%clk 00:02:11]} {[%emt 00:00:14]} 16.
Qe4 {[%clk 00:02:29]} {[%emt 00:00:09]} Ng6 {[%clk 00:02:09]} {[%emt 00:00:04]}
17. h4 {[%clk 00:02:20]} {[%emt 00:00:12]} c5 {[%clk 00:02:00]} {[%emt
00:00:11]} 18. h5 {[%clk 00:02:20]} Bc6 {[%clk 00:01:59]} {[%emt 00:00:04]} 19.
Qe2 {[%clk 00:02:05]} {[%emt 00:00:16]} Nh4 {[%clk 00:01:40]} {[%emt 00:00:21]}
20. Nxh4 {[%clk 00:01:44]} {[%emt 00:00:23]} Qxh4 {[%clk 00:01:40]} {[%emt
00:00:01]} 21. dxc5 {[%clk 00:01:45]} {[%emt 00:00:02]} Nd7 {[%clk 00:01:26]}
{[%emt 00:00:16]} 22. Qe3 {[%clk 00:01:35]} {[%emt 00:00:12]} Qxh5 {[%clk
00:01:08]} {[%emt 00:00:20]} 23. f4 {[%emt 00:00:21]} Rfd8 24. Ba5 {[%clk
00:01:13]} {[%emt 00:00:13]} b6 {[%clk 00:01:01]} {[%emt 00:00:03]} 25. cxb6
{[%clk 00:01:14]} axb6 {[%clk 00:01:02]} 26. Bb4 {[%clk 00:01:15]} {[%emt
00:00:04]} Nc5 {[%clk 00:01:01]} {[%emt 00:00:03]} 27. Bc2 {[%clk 00:01:02]}
{[%emt 00:00:14]} Qg4 {[%clk 00:00:58]} {[%emt 00:00:04]} 28. Rf2 {[%clk
00:01:03]} Rd7 {[%clk 00:00:45]} {[%emt 00:00:17]} 29. a4 {[%clk 00:01:03]}
{[%emt 00:00:03]} Rcd8 {[%clk 00:00:43]} {[%emt 00:00:03]} 30. a5 {[%clk
00:00:47]} {[%emt 00:00:18]} bxa5 {[%clk 00:00:25]} {[%emt 00:00:20]} 31. Bxc5
{[%clk 00:00:48]} {[%emt 00:00:02]} Rd1+ {[%clk 00:00:24]} {[%emt 00:00:04]} 32.
Bxd1 {[%clk 00:00:26]} {[%emt 00:00:23]} Rxd1+ {[%clk 00:00:24]} 33. Rxd1
{[%clk 00:00:27]} {[%emt 00:00:02]} Qxd1+ {[%clk 00:00:25]} {[%emt 00:00:02]}
34. Kh2 {[%clk 00:00:29]} Qh5+ {[%clk 00:00:16]} {[%emt 00:00:11]} 35. Qh3
{[%clk 00:00:29]} {[%emt 00:00:02]} Qd1 {[%clk 00:00:12]} {[%emt 00:00:05]} 36.
Qh4 {[%clk 00:00:23]} {[%emt 00:00:09]} a4 {[%clk 00:00:06]} {[%emt 00:00:08]}
37. Qe7 {[%clk 00:00:11]} {[%emt 00:00:14]} h6 {[%clk 00:00:04]} {[%emt
00:00:04]} 38. Rf3 {[%emt 00:00:12]} Bxf3 {[%clk 00:00:03]} 39. gxf3 {[%emt
00:00:06]} Qe2+ {[%clk 00:00:00]} {[%emt 00:00:27]} 1-0

[Event "Nové Hrady - Blesk"]
[Site "Nové Hrady, Czech Republic"]
[Date "2023.08.17"]
[Round "4.10"]
[White "Hostička, František"]
[Black "Dudkova, Danka"]
[Result "1-0"]
[TimeControl "2x3+2s"]
[WhiteFideId "302295"]
[BlackFideId "23718439"]
[WhiteElo "2074"]
[BlackElo "1650"]

1. e4 {[%clk 00:03:00]} {[%emt 00:07:37]} d5 {[%emt 00:00:46]} 2. Nc3 {[%clk
00:03:00]} {[%emt 00:00:02]} d4 {[%clk 00:03:02]} {[%emt 00:00:03]} 3. Nce2
{[%clk 00:03:01]} e5 {[%clk 00:03:02]} {[%emt 00:00:02]} 4. d3 {[%clk
00:03:01]} {[%emt 00:00:01]} Nc6 {[%clk 00:03:01]} {[%emt 00:00:04]} 5. g3
{[%clk 00:03:02]} Nf6 {[%clk 00:02:59]} {[%emt 00:00:05]} 6. Bg2 {[%clk
00:03:03]} Be7 {[%clk 00:02:59]} {[%emt 00:00:02]} 7. f4 {[%clk 00:03:03]}
{[%emt 00:00:02]} Bg4 {[%clk 00:02:18]} {[%emt 00:00:43]} 8. h3 {[%clk
00:03:00]} {[%emt 00:00:04]} Bxe2 {[%clk 00:02:18]} {[%emt 00:00:03]} 9. Qxe2
{[%clk 00:02:55]} {[%emt 00:00:07]} exf4 {[%clk 00:02:15]} {[%emt 00:00:06]} 10.
gxf4 {[%clk 00:02:49]} {[%emt 00:00:07]} Bb4+ {[%clk 00:02:14]} {[%emt
00:00:04]} 11. Bd2 {[%clk 00:02:37]} {[%emt 00:00:13]} Qe7 {[%clk 00:02:14]}
{[%emt 00:00:02]} 12. Nf3 {[%clk 00:02:34]} {[%emt 00:00:05]} Nh5 {[%clk
00:02:02]} {[%emt 00:00:14]} 13. Qf2 {[%clk 00:02:18]} {[%emt 00:00:16]} Bxd2+
{[%clk 00:02:03]} {[%emt 00:00:03]} 14. Nxd2 {[%clk 00:02:11]} {[%emt
00:00:09]} Qb4 {[%clk 00:01:49]} {[%emt 00:00:16]} 15. O-O-O {[%clk 00:01:45]}
{[%emt 00:00:28]} O-O-O {[%clk 00:01:48]} {[%emt 00:00:03]} 16. e5 {[%clk
00:01:40]} {[%emt 00:00:08]} g6 {[%clk 00:01:48]} {[%emt 00:00:02]} 17. Bxc6
{[%clk 00:01:23]} {[%emt 00:00:19]} bxc6 {[%clk 00:01:49]} 18. f5 {[%clk
00:01:23]} Qa5 {[%clk 00:01:46]} {[%emt 00:00:06]} 19. e6 {[%clk 00:01:00]}
{[%emt 00:00:25]} Qxa2 {[%clk 00:01:45]} {[%emt 00:00:03]} 20. exf7 {[%clk
00:00:57]} {[%emt 00:00:05]} Qxf7 {[%clk 00:01:46]} {[%emt 00:00:02]} 21. Rhf1
{[%clk 00:00:50]} {[%emt 00:00:08]} Rhf8 {[%clk 00:01:46]} {[%emt 00:00:02]} 22.
Qf3 {[%clk 00:00:39]} {[%emt 00:00:13]} Rd5 {[%clk 00:01:46]} {[%emt 00:00:03]}
23. fxg6 {[%clk 00:00:33]} {[%emt 00:00:08]} Qxf3 {[%clk 00:01:45]} {[%emt
00:00:02]} 24. Rxf3 {[%clk 00:00:33]} Rxf3 {[%clk 00:01:46]} 25. Nxf3 {[%clk
00:00:34]} {[%emt 00:00:03]} hxg6 {[%clk 00:01:47]} 26. Rg1 {[%clk 00:00:32]}
{[%emt 00:00:04]} Rd6 {[%clk 00:01:48]} {[%emt 00:00:02]} 27. Ne5 {[%clk
00:00:32]} {[%emt 00:00:02]} Nf4 {[%clk 00:01:49]} {[%emt 00:00:02]} 28. Kd2
{[%clk 00:00:24]} {[%emt 00:00:09]} Re6 {[%clk 00:01:38]} {[%emt 00:00:13]} 29.
Nc4 {[%clk 00:00:10]} {[%emt 00:00:16]} Nxh3 {[%clk 00:01:39]} {[%emt
00:00:01]} 30. Rg4 {[%clk 00:00:06]} {[%emt 00:00:06]} c5 {[%clk 00:01:40]} 31.
b4 {[%clk 00:00:04]} {[%emt 00:00:06]} Nf2 {[%clk 00:01:40]} 32. Rf4 {[%clk
00:00:03]} {[%emt 00:00:03]} g5 {[%clk 00:01:40]} {[%emt 00:00:02]} 33. Rxf2
{[%clk 00:00:04]} cxb4 {[%clk 00:01:40]} {[%emt 00:00:03]} 34. Rg2 {[%clk
00:00:05]} Rg6 {[%clk 00:01:40]} {[%emt 00:00:03]} 35. Rg4 {[%clk 00:00:06]}
Kd7 {[%clk 00:01:41]} {[%emt 00:00:02]} 36. Rxd4+ {[%clk 00:00:07]} Kc6 {[%clk
00:01:40]} {[%emt 00:00:03]} 37. Ne5+ {[%clk 00:00:08]} 1-0

[Event "Nové Hrady - Blesk"]
[Site "Nové Hrady, Czech Republic"]
[Date "2023.08.17"]
[Round "5.1"]
[White "Hak, David"]
[Black "Pulpan, Jakub"]
[Result "0-1"]
[TimeControl "2x3+2s"]
[WhiteFideId "377007"]
[BlackFideId "302759"]
[WhiteElo "2037"]
[BlackElo "2452"]

1. d4 {[%clk 00:03:03]} Nf6 {[%clk 00:03:03]} {[%emt 00:00:01]} 2. c4 {[%clk
00:03:04]} e6 {[%clk 00:03:04]} 3. Nf3 {[%clk 00:03:05]} {[%emt 00:00:03]} d5
{[%clk 00:03:05]} 4. Nc3 {[%clk 00:03:06]} {[%emt 00:00:03]} c5 {[%clk
00:03:06]} 5. cxd5 {[%clk 00:03:06]} {[%emt 00:00:02]} exd5 {[%clk 00:03:07]} 6.
g3 {[%clk 00:03:07]} Nc6 {[%clk 00:03:08]} {[%emt 00:00:04]} 7. Bg2 {[%clk
00:03:08]} {[%emt 00:00:01]} cxd4 {[%clk 00:03:08]} 8. Nxd4 {[%clk 00:03:09]}
Bc5 {[%clk 00:03:10]} 9. Nxc6 {[%clk 00:03:01]} {[%emt 00:00:12]} bxc6 {[%clk
00:03:11]} 10. O-O {[%clk 00:02:59]} {[%emt 00:00:05]} O-O {[%clk 00:03:11]}
{[%emt 00:00:01]} 11. Na4 {[%clk 00:02:58]} {[%emt 00:00:04]} Bb6 {[%clk
00:03:12]} 12. Qc2 {[%emt 00:00:07]} Bd7 {[%clk 00:03:11]} 13. Nc5 {[%clk
00:02:28]} {[%emt 00:00:30]} Re8 {[%clk 00:03:09]} {[%emt 00:00:03]} 14. Nxd7
{[%clk 00:01:46]} {[%emt 00:00:43]} Qxd7 {[%clk 00:03:10]} {[%emt 00:00:02]} 15.
Bg5 {[%clk 00:01:41]} {[%emt 00:00:07]} Ne4 {[%clk 00:03:09]} {[%emt 00:00:03]}
16. Bxe4 {[%clk 00:01:34]} {[%emt 00:00:09]} Rxe4 {[%clk 00:03:10]} 17. Rac1
{[%clk 00:00:55]} {[%emt 00:00:43]} h6 {[%clk 00:03:08]} {[%emt 00:00:03]} 18.
Bf4 {[%clk 00:00:56]} g5 {[%clk 00:03:04]} {[%emt 00:00:07]} 19. Be3 {[%clk
00:00:40]} {[%emt 00:00:18]} Rxe3 {[%clk 00:02:59]} {[%emt 00:00:07]} 20. fxe3
{[%clk 00:00:41]} Bxe3+ {[%clk 00:03:00]} 21. Kg2 {[%clk 00:00:34]} {[%emt
00:00:12]} Bxc1 {[%clk 00:03:00]} {[%emt 00:00:02]} 22. Rxc1 {[%clk 00:00:35]}
Qe6 {[%clk 00:02:58]} {[%emt 00:00:05]} 23. e4 {[%clk 00:00:23]} {[%emt
00:00:13]} Re8 {[%clk 00:02:53]} {[%emt 00:00:08]} 24. exd5 {[%clk 00:00:19]}
{[%emt 00:00:05]} Qxd5+ {[%clk 00:02:54]} {[%emt 00:00:02]} 25. Kg1 {[%clk
00:00:19]} {[%emt 00:00:02]} Re3 {[%clk 00:02:03]} {[%emt 00:00:53]} 26. Qxc6
{[%clk 00:00:13]} {[%emt 00:00:08]} Re1+ {[%clk 00:02:04]} 27. Kg2 {[%emt
00:00:13]} 0-1

[Event "Nové Hrady - Blesk"]
[Site "Nové Hrady, Czech Republic"]
[Date "2023.08.17"]
[Round "5.2"]
[White "Zeman, Matyas"]
[Black "Valenz, Miroslav"]
[Result "1-0"]
[TimeControl "2x3+2s"]
[WhiteFideId "364398"]
[BlackFideId "326283"]
[WhiteElo "2254"]
[BlackElo "1929"]

1. Nf3 {[%clk 00:03:02]} {[%emt 00:00:02]} Nf6 2. b3 d6 {[%clk 00:03:04]}
{[%emt 00:00:02]} 3. Bb2 {[%clk 00:03:04]} g6 {[%clk 00:03:05]} 4. d4 {[%clk
00:03:01]} {[%emt 00:00:07]} Bg7 {[%clk 00:03:06]} 5. g3 {[%clk 00:03:02]}
{[%emt 00:00:02]} O-O {[%clk 00:03:07]} 6. Bg2 {[%clk 00:03:03]} Bg4 {[%clk
00:02:49]} {[%emt 00:00:22]} 7. O-O {[%clk 00:03:03]} {[%emt 00:00:02]} Qd7
{[%clk 00:02:50]} 8. Re1 {[%clk 00:03:02]} {[%emt 00:00:04]} Bh3 {[%clk
00:02:51]} 9. Bh1 {[%clk 00:03:03]} Nc6 {[%clk 00:02:51]} {[%emt 00:00:03]} 10.
Nbd2 {[%clk 00:02:53]} {[%emt 00:00:13]} Nh5 {[%clk 00:02:48]} {[%emt
00:00:05]} 11. Qc1 {[%clk 00:02:07]} {[%emt 00:00:48]} Rae8 {[%clk 00:02:45]}
{[%emt 00:00:05]} 12. d5 {[%clk 00:02:07]} {[%emt 00:00:02]} Ne5 {[%clk
00:02:35]} {[%emt 00:00:12]} 13. Nxe5 {[%clk 00:02:07]} dxe5 {[%clk 00:02:36]}
14. Nc4 {[%clk 00:02:05]} {[%emt 00:00:06]} f6 {[%clk 00:02:25]} {[%emt
00:00:13]} 15. a4 {[%clk 00:02:05]} {[%emt 00:00:02]} Nf4 {[%clk 00:02:15]}
{[%emt 00:00:12]} 16. e3 {[%clk 00:01:51]} {[%emt 00:00:16]} Nh5 {[%clk
00:01:38]} {[%emt 00:00:39]} 17. Qd2 {[%clk 00:01:40]} {[%emt 00:00:12]} a6
{[%clk 00:01:36]} {[%emt 00:00:05]} 18. a5 {[%clk 00:01:41]} {[%emt 00:00:01]}
Kh8 {[%clk 00:01:13]} {[%emt 00:00:25]} 19. f4 {[%clk 00:01:40]} {[%emt
00:00:03]} exf4 {[%clk 00:01:11]} {[%emt 00:00:03]} 20. exf4 {[%clk 00:01:42]}
Qg4 {[%clk 00:00:46]} {[%emt 00:00:28]} 21. Qe2 {[%clk 00:01:41]} {[%emt
00:00:03]} Qd7 {[%clk 00:00:23]} {[%emt 00:00:25]} 22. Rad1 {[%clk 00:01:38]}
{[%emt 00:00:05]} b6 {[%clk 00:00:14]} {[%emt 00:00:11]} 23. axb6 {[%clk
00:01:32]} {[%emt 00:00:08]} cxb6 {[%clk 00:00:16]} 24. Nxb6 {[%clk 00:01:24]}
{[%emt 00:00:10]} Qc7 {[%clk 00:00:13]} {[%emt 00:00:04]} 25. Nc4 {[%clk
00:01:23]} {[%emt 00:00:04]} a5 {[%clk 00:00:12]} {[%emt 00:00:03]} 26. d6
{[%clk 00:01:18]} {[%emt 00:00:07]} exd6 {[%clk 00:00:13]} 27. Qxe8 {[%clk
00:01:18]} {[%emt 00:00:03]} 1-0

[Event "Nové Hrady - Blesk"]
[Site "Nové Hrady, Czech Republic"]
[Date "2023.08.17"]
[Round "5.3"]
[White "Babula, Milan"]
[Black "Šimůnek, Jakub Šimon"]
[Result "0-1"]
[TimeControl "2x3+2s"]
[WhiteFideId "300632"]
[BlackFideId "23709464"]
[WhiteElo "2176"]
[BlackElo "1921"]

1. e4 {[%clk 00:03:03]} e6 {[%clk 00:03:03]} 2. d4 {[%clk 00:03:04]} {[%emt
00:00:03]} d5 {[%clk 00:03:04]} 3. Nc3 {[%clk 00:03:04]} {[%emt 00:00:03]} Bb4
{[%clk 00:03:05]} 4. Nge2 {[%clk 00:03:05]} {[%emt 00:00:02]} dxe4 {[%clk
00:03:05]} {[%emt 00:00:02]} 5. a3 {[%clk 00:03:06]} Bxc3+ {[%clk 00:03:03]}
{[%emt 00:00:05]} 6. Nxc3 {[%clk 00:03:07]} {[%emt 00:00:02]} Nc6 {[%clk
00:03:04]} 7. Be3 {[%clk 00:02:56]} {[%emt 00:00:13]} Nf6 {[%clk 00:03:04]}
{[%emt 00:00:02]} 8. g4 {[%clk 00:02:39]} {[%emt 00:00:18]} Nd5 {[%clk
00:02:56]} {[%emt 00:00:10]} 9. Bg2 {[%clk 00:02:14]} {[%emt 00:00:27]} Nxe3
{[%clk 00:02:49]} {[%emt 00:00:08]} 10. fxe3 {[%clk 00:02:15]} Qh4+ {[%clk
00:02:50]} {[%emt 00:00:03]} 11. Kd2 {[%clk 00:02:08]} {[%emt 00:00:09]} e5
{[%clk 00:02:39]} {[%emt 00:00:13]} 12. d5 {[%clk 00:01:46]} {[%emt 00:00:24]}
Bxg4 {[%clk 00:02:36]} {[%emt 00:00:05]} 13. Qg1 {[%clk 00:01:36]} {[%emt
00:00:12]} O-O-O {[%clk 00:02:27]} {[%emt 00:00:11]} 14. Bxe4 {[%clk 00:01:33]}
{[%emt 00:00:04]} f5 {[%clk 00:02:19]} {[%emt 00:00:10]} 15. Bd3 {[%clk
00:01:34]} Bf3 {[%clk 00:02:16]} {[%emt 00:00:07]} 16. dxc6 {[%clk 00:01:24]}
{[%emt 00:00:12]} Bxc6 {[%clk 00:02:05]} {[%emt 00:00:14]} 17. Kc1 {[%clk
00:00:51]} {[%emt 00:00:35]} Bxh1 {[%clk 00:02:03]} {[%emt 00:00:03]} 18. Bxf5+
{[%emt 00:00:04]} Kb8 19. Qxh1 {[%clk 00:00:49]} Rhf8 {[%clk 00:02:00]} {[%emt
00:00:07]} 20. Bd3 {[%clk 00:00:42]} {[%emt 00:00:10]} Rf2 {[%clk 00:01:46]}
{[%emt 00:00:16]} 21. h3 {[%clk 00:00:35]} {[%emt 00:00:08]} Qg3 {[%clk
00:01:22]} {[%emt 00:00:27]} 22. Qe1 {[%clk 00:00:26]} {[%emt 00:00:10]} Qf3
{[%clk 00:01:09]} {[%emt 00:00:15]} 23. Ne4 {[%clk 00:00:11]} {[%emt 00:00:17]}
Rh2 {[%clk 00:00:56]} {[%emt 00:00:15]} 24. Ng3 {[%clk 00:00:08]} {[%emt
00:00:04]} Rxh3 {[%clk 00:00:47]} {[%emt 00:00:12]} 25. Nf1 {[%clk 00:00:08]}
{[%emt 00:00:02]} Rh1 {[%clk 00:00:40]} {[%emt 00:00:09]} 0-1